bitfinex/quotes_BTCUSD_20251031
["timestamp","ask_amount","ask_price","bid_price","bid_amount"]
[1761923553376,0.24500137,110950.0,110940.0,0.003]
[1761923553806,0.24500137,110950.0,110940.0,0.0388]
[1761923554018,0.24500137,110950.0,110940.0,0.003]
[1761923555133,0.29776137,110950.0,110940.0,0.003]
[1761923555606,0.24500137,110950.0,110940.0,0.003]
[1761923556477,0.06474,110950.0,110940.0,0.003]
[1761923556686,0.24500137,110950.0,110940.0,0.003]
[1761923557513,0.24500137,110950.0,110940.0,0.0388]
[1761923558051,0.24500137,110950.0,110940.0,0.003]
[1761923558462,0.20742137,110950.0,110940.0,0.0388]
[1761923558686,0.20753356,110970.0,110940.0,0.84447355]
[1761923558896,0.26029356,110970.0,110950.0,0.06343]
[1761923559360,0.18024513,110960.0,110950.0,0.06343]
[1761923559574,0.21782513,110960.0,110950.0,0.02763]
[1761923559994,0.21782513,110960.0,110950.0,0.03068748]
[1761923560452,0.01794619,110960.0,110950.0,0.00305748]
[1761923560725,0.19819132,110960.0,110950.0,0.00305748]
[1761923561187,0.25095132,110960.0,110950.0,0.00305748]
[1761923561652,0.25195132,110960.0,110950.0,0.00305748]
[1761923562796,0.19919132,110960.0,110950.0,0.00305748]
[1761923563258,0.19919132,110960.0,110950.0,0.06496748]
[1761923563467,0.19919132,110960.0,110950.0,0.07708123]
[1761923564111,0.01894619,110960.0,110950.0,0.07708123]
[1761923564333,0.19919132,110960.0,110950.0,0.06496748]
[1761923568601,0.19919132,110960.0,110950.0,0.03025748]
[1761923568799,0.19919132,110960.0,110950.0,0.06496748]
[1761923569210,0.19919132,110960.0,110950.0,0.03025748]
[1761923569418,0.19919132,110960.0,110950.0,0.00305748]
[1761923569625,0.25144132,110960.0,110950.0,0.00305748]
[1761923569909,0.19919132,110960.0,110950.0,0.00305748]
[1761923570853,0.19919132,110960.0,110950.0,0.06496748]
[1761923571293,0.19919132,110960.0,110950.0,0.00305748]
[1761923571917,0.19919132,110960.0,110950.0,0.06496748]
[1761923572335,0.19919132,110960.0,110950.0,0.12469206]
[1761923572543,0.19919132,110960.0,110950.0,0.06496748]
[1761923572757,0.19919132,110960.0,110950.0,0.00305748]
[1761923572974,0.25144132,110960.0,110950.0,0.00305748]
[1761923575176,0.19919132,110960.0,110950.0,0.03776748]
[1761923575646,0.25144132,110960.0,110950.0,0.00305748]
[1761923577577,0.28463715,110960.0,110950.0,0.00305748]
[1761923577785,0.79221465,110960.0,110950.0,0.00305748]
[1761923578000,1.13221465,110960.0,110950.0,0.00305748]
[1761923578209,1.16839693,110960.0,110950.0,0.00305748]
[1761923578432,0.18029387,110930.0,110920.0,0.0291229]
[1761923578628,0.26614304,110930.0,110920.0,0.0291229]
[1761923578837,0.31839304,110930.0,110920.0,0.0291229]
[1761923579295,0.38609791,110930.0,110920.0,0.0291229]
[1761923579782,0.25614305,110930.0,110920.0,0.0291229]
[1761923580269,0.31839304,110930.0,110920.0,0.0291229]
[1761923581216,0.79450138,110930.0,110920.0,0.0291229]
[1761923581424,2.83068366,110930.0,110920.0,0.0291229]
[1761923581658,0.18037518,110880.0,110870.0,0.0272]
[1761923581874,0.18037336,110890.0,110860.0,0.69313644]
[1761923582074,0.18035891,110890.0,110880.0,0.69119325]
[1761923582326,0.1939506,110900.0,110880.0,0.74736247]
[1761923582519,0.02183544,110900.0,110890.0,0.06191]
[1761923582738,0.20217809,110900.0,110890.0,0.06191]
[1761923583118,0.23638809,110900.0,110890.0,0.06191]
[1761923583753,0.00825544,110900.0,110890.0,0.77454725]
[1761923583953,0.20593187,110910.0,110890.0,0.77454725]
[1761923584151,0.18034265,110900.0,110890.0,0.77454725]
[1761923584367,0.18034265,110900.0,110890.0,0.59418834]
[1761923584522,0.18035891,110890.0,110880.0,0.55947834]
[1761923584724,0.22814891,110890.0,110880.0,0.0272]
[1761923584921,0.22814891,110890.0,110880.0,0.00153068]
[1761923585173,0.19393891,110890.0,110880.0,0.00153068]
[1761923585328,0.19393891,110890.0,110880.0,0.03624068]
[1761923585528,0.22814891,110890.0,110880.0,0.03624068]
[1761923585771,0.28039891,110890.0,110880.0,0.00253068]
[1761923586712,0.2903989,110890.0,110880.0,0.00253068]
[1761923587022,0.76650724,110890.0,110880.0,0.00253068]
[1761923587456,0.2903989,110890.0,110880.0,0.00153068]
[1761923588130,0.28039891,110890.0,110880.0,0.00153068]
[1761923588336,0.28139891,110890.0,110880.0,0.00353068]
[1761923588757,0.29656492,110890.0,110880.0,0.00153068]
[1761923588985,0.29756492,110890.0,110880.0,0.00153068]
[1761923589193,0.31056491,110890.0,110880.0,0.00153068]
[1761923590026,0.2943989,110890.0,110880.0,0.00153068]
[1761923590579,0.77050724,110890.0,110880.0,0.00153068]
[1761923591335,1.14668952,110890.0,110880.0,0.00153068]
[1761923591742,3.14668952,110890.0,110880.0,0.00153068]
[1761923593124,0.67058118,110890.0,110880.0,0.00153068]
[1761923593332,0.72421791,110890.0,110880.0,0.00153068]
[1761923593535,0.6343989,110890.0,110880.0,0.00153068]
[1761923596052,1.14668952,110890.0,110880.0,0.00153068]
[1761923597080,1.11050724,110890.0,110880.0,0.00153068]
[1761923598296,1.14668952,110890.0,110880.0,0.00153068]
[1761923598520,0.67058118,110890.0,110880.0,0.00153068]
[1761923598677,0.76040019,110890.0,110880.0,0.00153068]
[1761923598880,0.6343989,110890.0,110880.0,0.00153068]
[1761923599675,0.64854907,110890.0,110880.0,0.00153068]
[1761923600854,0.6343989,110890.0,110880.0,0.00153068]
[1761923603970,0.67058118,110890.0,110880.0,0.00153068]
[1761923605594,1.14668952,110890.0,110880.0,0.00153068]
[1761923605791,1.23650853,110890.0,110880.0,0.00153068]
[1761923606420,3.23650853,110890.0,110880.0,0.00153068]
[1761923607033,3.25065307,110890.0,110880.0,0.00153068]
[1761923607234,3.27593086,110890.0,110880.0,0.00153068]
[1761923607647,3.27293086,110890.0,110880.0,0.00153068]
[1761923607811,3.27293086,110890.0,110880.0,1e-08]
[1761923608017,3.28193086,110890.0,110880.0,1e-08]
[1761923608223,2.98131318,110890.0,110880.0,1e-08]
[1761923608422,0.19039143,110870.0,110860.0,0.00088403]
[1761923608621,2.679671,110870.0,110860.0,1e-08]
[1761923608865,2.73980099,110870.0,110860.0,1e-08]
[1761923609398,3.21590933,110870.0,110860.0,1e-08]
[1761923609607,3.23275713,110870.0,110860.0,1e-08]
[1761923609829,3.23175713,110870.0,110860.0,1e-08]
[1761923610040,2.71757066,110870.0,110860.0,1e-08]
[1761923610251,0.69072287,110870.0,110860.0,1e-08]
[1761923610665,0.69672287,110870.0,110860.0,0.00100001]
[1761923610869,0.70872286,110870.0,110860.0,0.00100001]
[1761923611706,0.70872286,110870.0,110860.0,1e-08]
[1761923611707,2.85680851,110870.0,110860.0,1e-08]
[1761923611915,3.34728747,110870.0,110860.0,1e-08]
[1761923612124,3.33597558,110870.0,110860.0,1e-08]
[1761923612334,3.33697558,110870.0,110860.0,1e-08]
[1761923612514,3.3285502,110870.0,110860.0,1e-08]
[1761923612764,3.34540364,110870.0,110860.0,1e-08]
[1761923613177,3.34540364,110870.0,110800.0,0.55193834]
[1761923613178,0.18048912,110810.0,110800.0,0.55193834]
[1761923613381,0.18048912,110810.0,110800.0,0.60977143]
[1761923613583,0.18048912,110810.0,110800.0,0.64470143]
[1761923614410,0.18048912,110810.0,110800.0,0.18259309]
[1761923614610,0.18148912,110810.0,110800.0,0.18259309]
[1761923614797,0.18148912,110810.0,110800.0,0.18434425]
[1761923615205,0.001,110810.0,110800.0,0.18434425]
[1761923615411,0.001,110810.0,110800.0,0.66045259]
[1761923616018,0.001,110810.0,110800.0,0.18434425]
[1761923616243,0.001,110810.0,110800.0,0.60276376]
[1761923617005,0.18148912,110810.0,110800.0,0.60276376]
[1761923617204,0.001,110810.0,110800.0,0.60276376]
[1761923617456,0.18148912,110810.0,110800.0,0.60276376]
[1761923617645,0.18048912,110810.0,110800.0,0.60276376]
[1761923617899,0.18048912,110810.0,110800.0,0.1894268]
[1761923618108,0.18048912,110810.0,110800.0,0.1407968]
[1761923618308,0.18048912,110810.0,110800.0,0.07802542]
[1761923618729,0.28087912,110810.0,110800.0,0.01589542]
[1761923619561,0.28087912,110810.0,110800.0,0.00489542]
[1761923619764,0.28187912,110810.0,110800.0,0.01189542]
[1761923620196,0.28187912,110810.0,110800.0,0.01289542]
[1761923620395,0.28087912,110810.0,110800.0,0.00189542]
[1761923620698,0.28187912,110810.0,110800.0,0.01189542]
[1761923620865,0.28187912,110810.0,110800.0,0.01289542]
[1761923621299,0.31334828,110810.0,110800.0,0.01289542]
[1761923621506,0.33561845,110810.0,110800.0,0.01289542]
[1761923621880,0.31334828,110810.0,110800.0,0.01289542]
[1761923622465,0.28087912,110810.0,110800.0,0.00189542]
[1761923622742,0.01749,110810.0,110800.0,0.03660542]
[1761923622954,0.001,110810.0,110800.0,0.56375376]
[1761923623282,0.16184329,110820.0,110800.0,0.56275376]
[1761923623617,0.22864912,110810.0,110800.0,0.03485426]
[1761923623822,0.01594,110810.0,110800.0,0.03485426]
[1761923624206,0.01494,110810.0,110800.0,0.03385426]
[1761923624476,0.19542912,110810.0,110800.0,0.03385426]
[1761923624860,0.27624912,110810.0,110800.0,0.00014426]
[1761923625064,0.22764912,110810.0,110800.0,0.03385426]
[1761923625493,0.19542912,110810.0,110800.0,0.03485426]
[1761923626021,0.19542912,110810.0,110800.0,0.03385426]
[1761923626247,0.19642912,110810.0,110800.0,0.03585426]
[1761923626451,0.27724912,110810.0,110800.0,0.00214426]
[1761923626928,0.19642912,110810.0,110800.0,0.03585426]
[1761923627077,0.001,110810.0,110800.0,0.13809052]
[1761923627276,0.18148912,110810.0,110800.0,0.08689426]
[1761923627504,0.001,110810.0,110800.0,0.5630026]
[1761923628259,0.001,110810.0,110800.0,0.5119626]
[1761923628452,0.001,110810.0,110800.0,0.08689426]
[1761923628977,0.001,110810.0,110800.0,1.03911094]
[1761923629397,0.001,110810.0,110800.0,0.82688439]
[1761923629816,0.25391967,110840.0,110800.0,0.82688439]
[1761923629817,0.20531967,110840.0,110800.0,0.82488439]
[1761923630022,0.20531967,110840.0,110820.0,0.03371]
[1761923630245,0.23753967,110840.0,110830.0,0.03480418]
[1761923630872,0.27069485,110850.0,110830.0,0.05875418]
[1761923631075,0.18044027,110840.0,110830.0,0.1087]
[1761923631288,0.18044027,110840.0,110830.0,0.05766]
[1761923631289,0.21266027,110840.0,110830.0,0.05766]
[1761923631728,0.21466027,110840.0,110830.0,0.05766]
[1761923631937,0.18045655,110830.0,110820.0,0.78927897]
[1761923632154,0.23751655,110830.0,110820.0,0.03371]
[1761923632363,0.20529655,110830.0,110820.0,0.03371]
[1761923633387,0.20629655,110830.0,110820.0,0.03571]
[1761923633833,0.23851655,110830.0,110820.0,0.03571]
[1761923635126,0.001,110830.0,110820.0,0.08675]
[1761923635307,0.001,110830.0,110820.0,0.82498897]
[1761923638509,0.1884173,110860.0,110820.0,0.82298897]
[1761923638724,0.1884173,110860.0,110850.0,0.02395]
[1761923638955,0.2370173,110860.0,110850.0,0.00065639]
[1761923639180,0.2206373,110860.0,110850.0,0.00065639]
[1761923639619,0.2216373,110860.0,110850.0,0.00065639]
[1761923639739,0.2246373,110860.0,110850.0,0.00065639]
[1761923639939,0.22511921,110860.0,110850.0,0.03436639]
[1761923640304,0.22511921,110860.0,110850.0,0.06094966]
[1761923640864,0.22511921,110860.0,110850.0,0.00065639]
[1761923641119,0.22111921,110860.0,110850.0,0.00065639]
[1761923641328,0.22211662,110860.0,110850.0,0.03536639]
[1761923641563,0.22511662,110860.0,110850.0,0.03536639]
[1761923642008,0.19289662,110860.0,110850.0,0.03536639]
[1761923642219,0.19289662,110860.0,110850.0,0.08640639]
[1761923642437,0.19289662,110860.0,110850.0,0.03536639]
[1761923642649,0.22511662,110860.0,110850.0,0.00165639]
[1761923643340,0.22511662,110860.0,110850.0,0.03536639]
[1761923643760,0.0124889,110860.0,110850.0,0.26683038]
[1761923643965,0.19289662,110860.0,110850.0,0.08640639]
[1761923644579,0.19289662,110860.0,110850.0,0.26683038]
[1761923645083,0.00448191,110860.0,110850.0,1.00506935]
[1761923645999,0.00148191,110860.0,110850.0,1.00406935]
[1761923646233,0.27097489,110860.0,110850.0,0.00065639]
[1761923646467,0.26370963,110860.0,110850.0,0.00365639]
[1761923646719,0.2722148,110860.0,110850.0,0.00365639]
[1761923646957,0.2226148,110860.0,110850.0,0.03736639]
[1761923647196,0.2226148,110860.0,110850.0,0.00365639]
[1761923647422,0.2712148,110860.0,110850.0,0.00465639]
[1761923647627,0.2216148,110860.0,110850.0,0.00065639]
[1761923647837,0.2226148,110860.0,110850.0,0.00065639]
[1761923648061,0.2742148,110860.0,110850.0,0.00165639]
[1761923649602,0.28421479,110860.0,110850.0,0.00165639]
[1761923649818,0.62421479,110860.0,110850.0,0.00165639]
[1761923650285,3.36245376,110860.0,110850.0,0.00165639]
[1761923650548,3.42555343,110860.0,110850.0,0.00165639]
[1761923650758,3.43555342,110860.0,110850.0,0.00165639]
[1761923650974,3.52537243,110860.0,110850.0,0.00165639]
[1761923651365,3.52237243,110860.0,110850.0,0.00065639]
[1761923651609,2.78413346,110860.0,110850.0,0.00065639]
[1761923651849,2.78813346,110860.0,110850.0,0.00165639]
[1761923652060,2.78013347,110860.0,110850.0,0.00165639]
[1761923652266,2.78513346,110860.0,110850.0,0.00065639]
[1761923652467,2.82945798,110860.0,110850.0,0.00165639]
[1761923653770,2.81945798,110860.0,110850.0,0.00065639]
[1761923653979,2.82145798,110860.0,110850.0,0.00065639]
[1761923654205,2.82545798,110860.0,110850.0,0.00165639]
[1761923654844,2.79854059,110860.0,110850.0,0.00165639]
[1761923655054,2.62621479,110860.0,110850.0,0.00165639]
[1761923655267,0.62621479,110860.0,110850.0,0.00165639]
[1761923655939,0.6162148,110860.0,110850.0,0.00165639]
[1761923656195,0.2276148,110860.0,110850.0,0.00165639]
[1761923656418,0.2276148,110860.0,110850.0,0.03415639]
[1761923656881,0.2236148,110860.0,110850.0,0.00065639]
[1761923657126,0.2236148,110860.0,110850.0,0.03315639]
[1761923657329,0.2246148,110860.0,110850.0,0.00365639]
[1761923657534,0.2718048,110860.0,110850.0,0.00365639]
[1761923659301,0.2226148,110860.0,110850.0,0.00365639]
[1761923659985,0.2226148,110860.0,110850.0,0.03615639]
[1761923660204,0.00148191,110860.0,110850.0,1.00372935]
[1761923660421,0.19001716,110860.0,110850.0,1.00372935]
[1761923660636,0.00148191,110860.0,110850.0,1.00372935]
[1761923661073,0.18188963,110860.0,110850.0,1.00372935]
[1761923661282,0.18188963,110860.0,110850.0,0.26549038]
[1761923661495,0.21311963,110860.0,110850.0,0.18408038]
[1761923661700,0.21311963,110860.0,110850.0,0.00365639]
[1761923661914,0.21311963,110860.0,110850.0,0.03615639]
[1761923662406,0.18188963,110860.0,110850.0,0.21658038]
[1761923662628,0.21311963,110860.0,110850.0,0.03615639]
[1761923663952,0.21311963,110860.0,110850.0,0.21658038]
[1761923664408,0.18188963,110860.0,110850.0,0.21658038]
[1761923664629,0.18188963,110860.0,110850.0,0.26254038]
[1761923664838,0.18188963,110860.0,110850.0,0.08211639]
[1761923665492,0.18188963,110860.0,110850.0,0.26254038]
[1761923665964,0.00148191,110860.0,110850.0,0.26254038]
[1761923666181,0.18188963,110860.0,110850.0,0.26254038]
[1761923666392,0.18188963,110860.0,110850.0,1.00077935]
[1761923666824,0.18040772,110860.0,110850.0,0.82035536]
[1761923667037,0.21080772,110860.0,110850.0,0.00365639]
[1761923667275,0.25870772,110860.0,110850.0,0.00365639]
[1761923667529,0.21080772,110860.0,110850.0,0.03346639]
[1761923667737,0.25870772,110860.0,110850.0,0.00365639]
[1761923673166,0.21080772,110860.0,110850.0,0.03346639]
[1761923673388,0.21080772,110860.0,110850.0,0.45318732]
[1761923673849,0.25870772,110860.0,110850.0,0.42337732]
[1761923674254,0.21080772,110860.0,110850.0,0.42337732]
[1761923674459,0.21080772,110860.0,110850.0,0.45318732]
[1761923674679,0.23546092,110870.0,110850.0,0.63361131]
[1761923674927,0.243304,110890.0,110870.0,0.18039144]
[1761923675138,0.225804,110890.0,110880.0,0.62990611]
[1761923675358,0.18042302,110900.0,110880.0,1.01503155]
[1761923675578,0.21082302,110900.0,110890.0,0.02981]
[1761923675792,0.23008891,110890.0,110880.0,0.78869637]
[1761923675997,0.23008891,110890.0,110880.0,0.05126]
[1761923676542,0.23840771,110890.0,110880.0,0.05126]
[1761923676769,0.23840771,110890.0,110880.0,0.05140426]
[1761923677013,0.23940771,110890.0,110880.0,0.05340426]
[1761923677182,0.23940771,110890.0,110880.0,0.09936426]
[1761923677341,0.20900771,110890.0,110880.0,0.10036426]
[1761923677546,0.23940771,110890.0,110880.0,0.79184063]
[1761923677753,0.18967771,110890.0,110880.0,0.83780063]
[1761923677967,0.001,110890.0,110880.0,0.83780063]
[1761923678571,0.18135891,110890.0,110880.0,0.83780063]
[1761923678846,0.001,110890.0,110880.0,0.10036426]
[1761923678976,0.001,110890.0,110880.0,0.86677816]
[1761923679610,0.18135891,110890.0,110880.0,0.86677816]
[1761923680101,0.001,110890.0,110880.0,0.86677816]
[1761923680500,0.18135891,110890.0,110880.0,0.86677816]
[1761923681401,0.001,110890.0,110880.0,0.86677816]
[1761923683083,0.18135891,110890.0,110880.0,0.86677816]
[1761923685356,0.001,110890.0,110880.0,0.86677816]
[1761923685560,0.18135891,110890.0,110880.0,0.86677816]
[1761923685766,0.001,110890.0,110880.0,0.86677816]
[1761923685984,0.18036818,110900.0,110890.0,0.02397]
[1761923686210,0.18036818,110900.0,110890.0,0.09781125]
[1761923686427,0.21085818,110900.0,110890.0,0.09781125]
[1761923687257,0.21185818,110900.0,110890.0,0.09781125]
[1761923687897,0.26003818,110900.0,110890.0,0.04406125]
[1761923688113,0.21185818,110900.0,110890.0,0.07384125]
[1761923689423,0.18136818,110900.0,110890.0,0.59627185]
[1761923693162,0.001,110900.0,110890.0,0.59627185]
[1761923693741,0.18134265,110900.0,110890.0,0.59627185]
[1761923693928,0.21183265,110900.0,110890.0,0.55033185]
[1761923694544,0.21083265,110900.0,110890.0,0.59627185]
[1761923694757,0.21183265,110900.0,110890.0,0.07884125]
[1761923694959,0.21183265,110900.0,110890.0,0.5112706]
[1761923695191,0.26001265,110900.0,110890.0,0.005]
[1761923695614,0.21183265,110900.0,110890.0,0.5122706]
[1761923696673,0.26001265,110900.0,110890.0,0.4824906]
[1761923697126,0.21183265,110900.0,110890.0,0.5122706]
[1761923697354,0.21183265,110900.0,110890.0,0.59207609]
[1761923698463,0.18134265,110900.0,110890.0,0.63801609]
[1761923698678,0.001,110900.0,110890.0,0.63801609]
[1761923698918,0.18134265,110900.0,110890.0,0.63801609]
[1761923699163,0.001,110900.0,110890.0,0.63801609]
[1761923699578,0.001,110900.0,110890.0,0.66948525]
[1761923700367,0.001,110900.0,110890.0,0.70566753]
[1761923701174,0.001,110900.0,110890.0,0.818375]
[1761923701603,0.18032719,110910.0,110900.0,0.18034265]
[1761923701793,0.18032719,110910.0,110900.0,0.74975654]
[1761923702146,0.20714893,110920.0,110900.0,0.27326594]
[1761923702361,0.02683624,110920.0,110910.0,0.75650699]
[1761923702825,0.02683624,110920.0,110910.0,1.26446675]
[1761923703491,0.02683624,110920.0,110910.0,1.30064903]
[1761923703700,0.02683624,110920.0,110910.0,1.35648452]
[1761923703942,0.02683624,110920.0,110910.0,1.35748452]
[1761923704172,0.02683624,110920.0,110910.0,1.35648452]
[1761923705018,0.02683624,110920.0,110910.0,1.35748452]
[1761923705468,0.02683624,110920.0,110910.0,1.35848452]
[1761923705712,0.02683624,110920.0,110910.0,1.36148452]
[1761923706159,0.02683624,110920.0,110910.0,1.36348452]
[1761923709290,0.02683624,110920.0,110910.0,1.36148452]
[1761923709642,0.02683624,110920.0,110910.0,1.36348452]
[1761923709997,0.02683624,110920.0,110910.0,1.36148452]
[1761923710435,0.02683624,110920.0,110910.0,1.35848452]
[1761923710666,0.02683624,110920.0,110910.0,1.36448452]
[1761923710887,0.0002,110940.0,110930.0,0.51267288]
[1761923711102,0.0002,110940.0,110930.0,0.59674204]
[1761923711308,0.0002,110940.0,110930.0,0.64306204]
[1761923712165,0.0022,110940.0,110930.0,0.64306204]
[1761923712383,0.0022,110940.0,110930.0,1.11955264]
[1761923712921,0.0022,110940.0,110930.0,1.12055264]
[1761923713144,0.0022,110940.0,110930.0,1.12255264]
[1761923713327,0.02648804,110970.0,110960.0,0.98916348]
[1761923713470,0.02663271,110970.0,110960.0,0.9818412]
[1761923713672,0.02663271,110970.0,110960.0,0.5506906]
[1761923713873,0.02663271,110970.0,110960.0,0.0742]
[1761923714079,0.2068616,110970.0,110960.0,0.5506906]
[1761923714703,0.2510416,110970.0,110960.0,0.5093506]
[1761923715098,0.2228316,110970.0,110960.0,0.03286]
[1761923715322,0.2228316,110970.0,110960.0,0.5608106]
[1761923715539,0.2228316,110970.0,110960.0,0.5618106]
[1761923716118,0.02663271,110970.0,110960.0,1.0383012]
[1761923716336,0.02663271,110970.0,110960.0,1.07448348]
[1761923716548,0.02663271,110970.0,110960.0,1.07748348]
[1761923716985,0.02663271,110970.0,110960.0,1.0413012]
[1761923719264,0.2350716,110970.0,110960.0,0.004]
[1761923719516,0.2948216,110970.0,110960.0,0.004]
[1761923720198,0.2948216,110970.0,110960.0,0.001]
[1761923721206,0.2978216,110970.0,110960.0,0.001]
[1761923721429,0.18024513,110960.0,110950.0,0.4994906]
[1761923721843,0.20988513,110960.0,110950.0,0.5296106]
[1761923722077,0.2258316,110970.0,110950.0,0.5746106]
[1761923722309,0.2564716,110970.0,110960.0,0.5066106]
[1761923722517,0.2554716,110970.0,110960.0,0.4764906]
[1761923722994,0.18024513,110960.0,110950.0,0.4764906]
[1761923723243,0.18024513,110960.0,110930.0,0.02237]
[1761923723244,0.18027762,110940.0,110930.0,0.02237]
[1761923723457,0.18027762,110940.0,110930.0,0.5357176]
[1761923723675,0.20991762,110940.0,110930.0,0.5357176]
[1761923724120,0.18027762,110940.0,110930.0,0.5357176]
[1761923724355,0.18027762,110940.0,110930.0,0.5807176]
[1761923726356,0.18327762,110940.0,110930.0,0.5357176]
[1761923726576,0.18327762,110940.0,110930.0,0.5807176]
[1761923726811,0.18027762,110940.0,110930.0,0.5807176]
[1761923727479,0.25450762,110940.0,110930.0,0.4764906]
[1761923727698,0.25450762,110940.0,110930.0,0.03012]
[1761923727699,0.20991762,110940.0,110930.0,0.03012]
[1761923727924,0.20991762,110940.0,110930.0,0.5066106]
[1761923728394,0.20991762,110940.0,110930.0,0.5292806]
[1761923728563,0.18027762,110940.0,110930.0,0.5292806]
[1761923728764,0.001,110940.0,110930.0,0.5742806]
[1761923729206,0.18127762,110940.0,110930.0,0.5742806]
[1761923729762,0.18427762,110940.0,110930.0,0.5742806]
[1761923731153,0.18029387,110930.0,110920.0,0.0290429]
[1761923731359,0.20993387,110930.0,110920.0,0.5055335]
[1761923731568,0.18029387,110930.0,110920.0,0.5356535]
[1761923731811,0.18029387,110930.0,110920.0,0.5806535]
[1761923732206,0.18027762,110940.0,110920.0,0.5806535]
[1761923732417,0.20991762,110940.0,110930.0,0.5292806]
[1761923733082,0.18027762,110940.0,110930.0,0.5292806]
[1761923733283,0.21391762,110940.0,110930.0,0.5292806]
[1761923733695,0.21391762,110940.0,110930.0,0.05279]
[1761923733909,0.21091762,110940.0,110930.0,0.5292806]
[1761923734139,0.21391762,110940.0,110930.0,0.5292806]
[1761923734333,0.21391762,110940.0,110930.0,0.4764906]
[1761923734935,0.21391762,110940.0,110920.0,0.5055335]
[1761923734936,0.18029387,110930.0,110920.0,0.5055335]
[1761923735148,0.20993387,110930.0,110920.0,0.5055335]
[1761923735778,0.25452387,110930.0,110920.0,0.0290429]
[1761923736932,0.20993387,110930.0,110920.0,0.0290429]
[1761923737135,0.20993387,110930.0,110920.0,0.5055335]
[1761923737353,0.20993387,110930.0,110920.0,0.5356535]
[1761923738112,0.21999093,110930.0,110920.0,0.5356535]
[1761923738802,0.26458093,110930.0,110920.0,0.5055335]
[1761923739396,0.21999093,110930.0,110920.0,0.5055335]
[1761923739819,0.26458093,110930.0,110920.0,0.5055335]
[1761923740022,0.21999093,110930.0,110920.0,0.5356535]
[1761923740228,0.18027762,110940.0,110920.0,0.5806535]
[1761923740456,0.18027762,110940.0,110930.0,0.05279]
[1761923740708,0.19042092,110940.0,110930.0,0.5742806]
[1761923740930,0.19068137,110950.0,110930.0,0.5742806]
[1761923741161,0.22032137,110950.0,110940.0,0.03012]
[1761923741378,0.18027762,110940.0,110930.0,0.5292806]
[1761923741632,0.20991762,110940.0,110930.0,0.5292806]
[1761923741886,0.2226186,110940.0,110930.0,0.5292806]
[1761923742139,0.18029387,110930.0,110920.0,0.5055335]
[1761923742346,0.2206186,110940.0,110930.0,0.0507]
[1761923742554,0.1939786,110940.0,110930.0,0.5271906]
[1761923742772,0.1939786,110940.0,110930.0,0.5675206]
[1761923743000,0.1929786,110940.0,110930.0,0.5675206]
[1761923743262,0.2192186,110940.0,110930.0,0.4764906]
[1761923743502,0.2192186,110940.0,110930.0,0.5271906]
[1761923743716,0.2614586,110940.0,110930.0,0.4764906]
[1761923743942,0.2624586,110940.0,110930.0,0.4764906]
[1761923744848,0.2654586,110940.0,110930.0,0.4764906]
[1761923745588,0.18029387,110930.0,110920.0,0.5055335]
[1761923745851,0.20953387,110930.0,110920.0,0.5343335]
[1761923746320,0.02924,110930.0,110920.0,0.5343335]
[1761923746553,0.18029387,110930.0,110920.0,0.5746635]
[1761923747210,0.1929786,110940.0,110920.0,0.5746635]
[1761923747453,0.2222186,110940.0,110930.0,0.5052906]
[1761923747908,0.2192186,110940.0,110930.0,0.5052906]
[1761923748563,0.2202186,110940.0,110930.0,0.5271906]
[1761923749013,0.2232186,110940.0,110930.0,0.5271906]
[1761923750339,0.2232186,110940.0,110930.0,0.4764906]
[1761923750786,0.2654586,110940.0,110930.0,0.4764906]
[1761923751484,0.18029387,110930.0,110920.0,0.76585464]
[1761923751757,0.18029387,110930.0,110920.0,0.80618464]
[1761923751995,0.01370098,110940.0,110930.0,0.0288]
[1761923752231,0.004,110940.0,110930.0,0.82784174]
[1761923752484,0.23292371,110950.0,110930.0,0.82784174]
[1761923752683,0.21992371,110950.0,110940.0,0.0288]
[1761923752872,0.19068137,110950.0,110940.0,0.80594174]
[1761923753157,0.20283513,110960.0,110940.0,0.80594174]
[1761923753403,0.00845211,110960.0,110950.0,0.80594174]
[1761923753670,0.19009791,110960.0,110950.0,0.80594174]
[1761923753916,0.1895795,110950.0,110940.0,0.73681174]
[1761923754138,0.20951762,110940.0,110930.0,0.0507]
[1761923754374,0.21251762,110940.0,110930.0,0.78751174]
[1761923754613,0.18327762,110940.0,110930.0,0.82784174]
[1761923754856,0.20951762,110940.0,110930.0,0.78751174]
[1761923755092,0.20951762,110940.0,110930.0,0.0507]
[1761923756033,0.18029387,110930.0,110920.0,0.0290429]
[1761923756283,0.34823818,110930.0,110920.0,0.0290429]
[1761923756540,3.43504991,110930.0,110920.0,0.0290429]
[1761923756764,3.48123218,110930.0,110920.0,0.0290429]
[1761923756995,2.68823818,110930.0,110920.0,0.0290429]
[1761923757223,2.69823817,110930.0,110920.0,0.0290429]
[1761923757709,3.47123219,110930.0,110920.0,0.0290429]
[1761923757952,3.48123218,110930.0,110920.0,0.0290429]
[1761923758188,3.49123218,110930.0,110920.0,0.0300429]
[1761923758696,3.49223218,110930.0,110920.0,0.0300429]
[1761923758932,3.49123218,110930.0,110920.0,1e-08]
[1761923759171,3.50068463,110930.0,110920.0,1e-08]
[1761923759408,3.50368463,110930.0,110920.0,1e-08]
[1761923759638,3.50268463,110930.0,110920.0,1e-08]
[1761923759857,3.51682508,110930.0,110920.0,1e-08]
[1761923760103,0.18037518,110880.0,110870.0,0.02211875]
[1761923760392,0.20974553,110880.0,110870.0,0.05091875]
[1761923760611,0.20974553,110880.0,110870.0,0.00021875]
[1761923761421,0.25198553,110880.0,110870.0,0.00021875]
[1761923763166,0.2621366,110880.0,110870.0,0.00021875]
[1761923763861,0.29831888,110880.0,110870.0,0.00021875]
[1761923764063,3.46025753,110880.0,110870.0,1e-08]
[1761923764273,3.50944174,110880.0,110870.0,1e-08]
[1761923764489,3.50944174,110880.0,110810.0,0.73721174]
[1761923764490,3.51044174,110880.0,110810.0,0.73721174]
[1761923764705,0.1805217,110790.0,110770.0,0.00048]
[1761923765129,0.01149,110790.0,110780.0,1.82461174]
[1761923765332,0.24756911,110810.0,110780.0,1.82461174]
[1761923765333,0.19532912,110810.0,110780.0,1.86494174]
[1761923765540,0.18051945,110820.0,110800.0,0.76561174]
[1761923765750,0.18051945,110820.0,110810.0,0.001]
[1761923765953,0.21198861,110820.0,110810.0,0.001]
[1761923766156,0.20972912,110810.0,110800.0,0.00048191]
[1761923766362,0.19535945,110830.0,110800.0,0.73729365]
[1761923766567,0.18047343,110820.0,110800.0,0.80642365]
[1761923766948,0.18047343,110820.0,110800.0,0.06961191]
[1761923767154,0.001,110820.0,110810.0,0.06913]
[1761923767521,0.1952974,110830.0,110810.0,0.06913]
[1761923767729,0.1952974,110830.0,110810.0,0.80594174]
[1761923767730,0.01484,110830.0,110810.0,0.80594174]
[1761923768009,0.19193214,110840.0,110820.0,0.06913]
[1761923768192,0.18045655,110830.0,110820.0,0.0288]
[1761923768402,0.19193214,110840.0,110820.0,0.0288]